[Event "*** Titled Tuesday Blitz"]
[Site "Chess.com"]
[Date "2020.05.05"]
[Round "8"]
[White "davidkalashian"]
[Black "SaqoChess_Twitch"]
[Result "1-0"]
[WhiteElo "2543"]
[BlackElo "2403"]
[TimeControl "180+1"]
[EndTime "11:37:25 PDT"]
[Termination "davidkalashian won by checkmate"]

1. e4 {[%clk 0:03:00.9]} 1... c5 {[%clk 0:02:59.7]} 2. Nc3 {[%clk 0:03:00.1]}
2... d6 {[%clk 0:02:59.4]} 3. Nf3 {[%clk 0:03:00.1]} 3... Nf6 {[%clk 0:02:59.1]}
4. e5 {[%clk 0:03:00.4]} 4... dxe5 {[%clk 0:02:59.5]} 5. Nxe5 {[%clk 0:03:01.2]}
5... Nbd7 {[%clk 0:02:57.8]} 6. Nc4 {[%clk 0:03:00.8]} 6... e6 {[%clk
0:02:53.5]} 7. a4 {[%clk 0:02:58.7]} 7... Be7 {[%clk 0:02:53.5]} 8. a5 {[%clk
0:02:58.8]} 8... Rb8 {[%clk 0:02:28.4]} 9. d3 {[%clk 0:02:54.4]} 9... Nd5 {[%clk
0:02:20.9]} 10. Qf3 {[%clk 0:02:39.9]} 10... N7f6 {[%clk 0:02:02]} 11. Qg3
{[%clk 0:02:34.8]} 11... Qc7 {[%clk 0:01:47.6]} 12. Qxg7 {[%clk 0:02:08.2]}
12... Rg8 {[%clk 0:01:47.7]} 13. Qh6 {[%clk 0:02:08.1]} 13... Rg6 {[%clk
0:01:48.2]} 14. Qd2 {[%clk 0:02:00.2]} 14... b5 {[%clk 0:01:47.8]} 15. axb6
{[%clk 0:01:58.7]} 15... axb6 {[%clk 0:01:47.8]} 16. g3 {[%clk 0:01:45.8]} 16...
Bb7 {[%clk 0:01:43.5]} 17. Ne4 {[%clk 0:01:24.8]} 17... Nd7 {[%clk 0:01:28.7]}
18. f3 {[%clk 0:00:48.4]} 18... f5 {[%clk 0:01:27.2]} 19. Nf2 {[%clk 0:00:46.8]}
19... b5 {[%clk 0:01:08.8]} 20. Ne3 {[%clk 0:00:40.6]} 20... Bg5 {[%clk
0:00:59.9]} 21. Qe2 {[%clk 0:00:39.5]} 21... Nb4 {[%clk 0:00:51.7]} 22. Bg2
{[%clk 0:00:34.9]} 22... Ne5 {[%clk 0:00:48]} 23. f4 {[%clk 0:00:33.1]} 23...
Bxf4 {[%clk 0:00:29.7]} 24. Bxb7 {[%clk 0:00:28.1]} 24... Bxe3 {[%clk
0:00:25.4]} 25. Bxe3 {[%clk 0:00:27.9]} 25... Rxb7 {[%clk 0:00:20.2]} 26. Bf4
{[%clk 0:00:25.5]} 26... Nbc6 {[%clk 0:00:18.5]} 27. O-O {[%clk 0:00:20.2]}
27... h5 {[%clk 0:00:17.3]} 28. c3 {[%clk 0:00:18.9]} 28... h4 {[%clk
0:00:16.3]} 29. Rfe1 {[%clk 0:00:18.5]} 29... hxg3 {[%clk 0:00:16.6]} 30. hxg3
{[%clk 0:00:18.3]} 30... Qg7 {[%clk 0:00:17.1]} 31. Bxe5 {[%clk 0:00:16.2]}
31... Nxe5 {[%clk 0:00:16.7]} 32. Qxe5 {[%clk 0:00:14.9]} 32... Rxg3+ {[%clk
0:00:17.2]} 33. Kh2 {[%clk 0:00:08.8]} 33... Rg2+ {[%clk 0:00:15.2]} 34. Kh1
{[%clk 0:00:09.2]} 34... Qg6 {[%clk 0:00:09.8]} 35. Qxe6+ {[%clk 0:00:08.6]}
35... Kf8 {[%clk 0:00:08.3]} 36. Qxg6 {[%clk 0:00:07.1]} 36... Rxg6 {[%clk
0:00:07.9]} 37. Nh3 {[%clk 0:00:08]} 37... Rh7 {[%clk 0:00:07.1]} 38. Kh2 {[%clk
0:00:08.5]} 38... f4 {[%clk 0:00:07.2]} 39. Ra8+ {[%clk 0:00:08.4]} 39... Kg7
{[%clk 0:00:06.5]} 40. Ra7+ {[%clk 0:00:08.9]} 40... Kh6 {[%clk 0:00:07.2]} 41.
Rxh7+ {[%clk 0:00:09.5]} 41... Kxh7 {[%clk 0:00:08.1]} 42. Rf1 {[%clk
0:00:09.5]} 42... Rg3 {[%clk 0:00:08.2]} 43. Rxf4 {[%clk 0:00:09.7]} 43... Rxd3
{[%clk 0:00:08.9]} 44. Rf5 {[%clk 0:00:10.1]} 44... Rd2+ {[%clk 0:00:09.4]} 45.
Kg3 {[%clk 0:00:10.9]} 45... Rxb2 {[%clk 0:00:06.9]} 46. Rxc5 {[%clk 0:00:11.8]}
46... Rb3 {[%clk 0:00:07.6]} 47. Ng5+ {[%clk 0:00:12.2]} 47... Kg6 {[%clk
0:00:07]} 48. Nf3 {[%clk 0:00:12.8]} 48... b4 {[%clk 0:00:06.3]} 49. c4 {[%clk
0:00:12.2]} 49... Rc3 {[%clk 0:00:06.5]} 50. Kf4 {[%clk 0:00:12.7]} 50... b3
{[%clk 0:00:06.8]} 51. Rb5 {[%clk 0:00:11.2]} 51... Rxc4+ {[%clk 0:00:06.2]} 52.
Kg3 {[%clk 0:00:11.8]} 52... Rc3 {[%clk 0:00:06.7]} 53. Kf4 {[%clk 0:00:12.2]}
53... Kf6 {[%clk 0:00:07.2]} 54. Nd4 {[%clk 0:00:12]} 54... Ke7 {[%clk
0:00:06.9]} 55. Nxb3 {[%clk 0:00:11.8]} 55... Rc4+ {[%clk 0:00:06.8]} 56. Ke3
{[%clk 0:00:09.9]} 56... Kd6 {[%clk 0:00:07]} 57. Nd4 {[%clk 0:00:10.4]} 57...
Rc3+ {[%clk 0:00:07]} 58. Ke4 {[%clk 0:00:09.7]} 58... Rc1 {[%clk 0:00:07.9]}
59. Rd5+ {[%clk 0:00:10]} 59... Kc7 {[%clk 0:00:07.7]} 60. Rh5 {[%clk
0:00:10.9]} 60... Re1+ {[%clk 0:00:07.7]} 61. Kd5 {[%clk 0:00:11.8]} 61... Kd8
{[%clk 0:00:07.3]} 62. Rh7 {[%clk 0:00:12.2]} 62... Ke8 {[%clk 0:00:07.6]} 63.
Nf5 {[%clk 0:00:11.3]} 63... Kf8 {[%clk 0:00:07]} 64. Ra7 {[%clk 0:00:11.5]}
64... Kg8 {[%clk 0:00:07.2]} 65. Nd6 {[%clk 0:00:11.9]} 65... Kf8 {[%clk
0:00:07]} 66. Ne4 {[%clk 0:00:12.3]} 66... Kg8 {[%clk 0:00:06.9]} 67. Ke5 {[%clk
0:00:12.8]} 67... Kf8 {[%clk 0:00:06.6]} 68. Kf5 {[%clk 0:00:13.3]} 68... Ke8
{[%clk 0:00:06.7]} 69. Nd6+ {[%clk 0:00:13]} 69... Kf8 {[%clk 0:00:06.4]} 70.
Rf7+ {[%clk 0:00:12.3]} 70... Kg8 {[%clk 0:00:06.3]} 71. Rc7 {[%clk 0:00:13.2]}
71... Rf1+ {[%clk 0:00:05.6]} 72. Ke6 {[%clk 0:00:13.1]} 72... Re1+ {[%clk
0:00:06.2]} 73. Kf6 {[%clk 0:00:13.6]} 73... Ra1 {[%clk 0:00:04.1]} 74. Rc8+
{[%clk 0:00:11.8]} 74... Kh7 {[%clk 0:00:02.3]} 75. Rc7+ {[%clk 0:00:12.1]}
75... Kh6 {[%clk 0:00:01.7]} 76. Rc4 {[%clk 0:00:09]} 76... Kh5 {[%clk
0:00:01.7]} 77. Nf5 {[%clk 0:00:08]} 77... Rf1 {[%clk 0:00:02.6]} 78. Rh4#
{[%clk 0:00:06.1]} 1-0

[Event "*** Titled Tuesday Blitz"]
[Site "Chess.com"]
[Date "2020.05.05"]
[Round "8"]
[White "Funkmaus"]
[Black "gui_borba"]
[Result "0-1"]
[WhiteElo "2214"]
[BlackElo "2368"]
[TimeControl "180+1"]
[EndTime "11:37:34 PDT"]
[Termination "gui_borba won by resignation"]

1. d4 {[%clk 0:03:00.9]} 1... Nf6 {[%clk 0:02:58.3]} 2. Nf3 {[%clk 0:03:00.2]}
2... e6 {[%clk 0:02:57.1]} 3. c4 {[%clk 0:02:56.9]} 3... d5 {[%clk 0:02:57.4]}
4. cxd5 {[%clk 0:02:55.4]} 4... exd5 {[%clk 0:02:57.5]} 5. Nc3 {[%clk
0:02:56.3]} 5... c6 {[%clk 0:02:56.8]} 6. Bf4 {[%clk 0:02:55.3]} 6... Bd6 {[%clk
0:02:54.7]} 7. Bg3 {[%clk 0:02:54.3]} 7... Bf5 {[%clk 0:02:54.4]} 8. e3 {[%clk
0:02:54.4]} 8... O-O {[%clk 0:02:54.4]} 9. Bd3 {[%clk 0:02:52.9]} 9... Bxd3
{[%clk 0:02:54.3]} 10. Qxd3 {[%clk 0:02:53.8]} 10... a5 {[%clk 0:02:54.6]} 11.
O-O {[%clk 0:02:51.8]} 11... Bxg3 {[%clk 0:02:54.5]} 12. hxg3 {[%clk 0:02:51.1]}
12... Re8 {[%clk 0:02:53.9]} 13. a3 {[%clk 0:02:48.9]} 13... Nbd7 {[%clk
0:02:50.6]} 14. b4 {[%clk 0:02:47.3]} 14... Ne4 {[%clk 0:02:46.9]} 15. Nd2
{[%clk 0:02:42.2]} 15... axb4 {[%clk 0:02:33.4]} 16. axb4 {[%clk 0:02:40.3]}
16... Nxc3 {[%clk 0:02:32.3]} 17. Qxc3 {[%clk 0:02:38.1]} 17... Qb6 {[%clk
0:02:32.2]} 18. Nb3 {[%clk 0:02:30.3]} 18... Qb5 {[%clk 0:02:23.1]} 19. Nc5
{[%clk 0:02:25.4]} 19... Nf6 {[%clk 0:02:16.6]} 20. Ra5 {[%clk 0:01:54.1]} 20...
Rxa5 {[%clk 0:01:53.2]} 21. bxa5 {[%clk 0:01:55]} 21... Ne4 {[%clk 0:01:53.8]}
22. Nxe4 {[%clk 0:01:48.3]} 22... dxe4 {[%clk 0:01:54.7]} 23. Ra1 {[%clk
0:01:35.1]} 23... Re6 {[%clk 0:01:40.1]} 24. Qc2 {[%clk 0:01:07.5]} 24... h5
{[%clk 0:01:13.3]} 25. Qb1 {[%clk 0:00:59.6]} 25... Qa6 {[%clk 0:00:59.4]} 26.
Qb6 {[%clk 0:00:56.4]} 26... Qxb6 {[%clk 0:00:43.8]} 27. axb6 {[%clk 0:00:57.3]}
27... Re7 {[%clk 0:00:42.8]} 28. Ra8+ {[%clk 0:00:55.9]} 28... Kh7 {[%clk
0:00:43.1]} 29. Rc8 {[%clk 0:00:56.4]} 29... Kg6 {[%clk 0:00:43.4]} 30. Rc7
{[%clk 0:00:56.3]} 30... Kf6 {[%clk 0:00:43.8]} 31. f3 {[%clk 0:00:39.2]} 31...
exf3 {[%clk 0:00:39.1]} 32. gxf3 {[%clk 0:00:36.1]} 32... Ke6 {[%clk 0:00:39.5]}
33. Rc8 {[%clk 0:00:27.1]} 33... Kd5 {[%clk 0:00:36.6]} 34. Rc7 {[%clk
0:00:20.5]} 34... Kd6 {[%clk 0:00:36.7]} 35. Rc8 {[%clk 0:00:20.7]} 35... Rxe3
{[%clk 0:00:34.8]} 36. Kf2 {[%clk 0:00:18.1]} 36... Rb3 {[%clk 0:00:31.6]} 37.
Rc7 {[%clk 0:00:16.5]} 37... Rxb6 {[%clk 0:00:27.6]} 38. Rxf7 {[%clk 0:00:16.5]}
38... Kd5 {[%clk 0:00:27.9]} 39. Rxg7 {[%clk 0:00:16.7]} 39... Kxd4 {[%clk
0:00:28.4]} 40. Rg5 {[%clk 0:00:16.3]} 40... Rb2+ {[%clk 0:00:27.9]} 41. Ke1
{[%clk 0:00:15.3]} 41... Ke3 {[%clk 0:00:28]} 42. Re5+ {[%clk 0:00:12.5]} 42...
Kxf3 {[%clk 0:00:27.5]} 43. Rxh5 {[%clk 0:00:13.1]} 43... Kxg3 {[%clk
0:00:27.2]} 44. Rh7 {[%clk 0:00:13.4]} 44... Kf4 {[%clk 0:00:26.8]} 45. Kd1
{[%clk 0:00:13.7]} 45... Ke4 {[%clk 0:00:26.4]} 46. Kc1 {[%clk 0:00:14.2]} 46...
Rb5 {[%clk 0:00:26.6]} 47. Kc2 {[%clk 0:00:14.3]} 47... Kd5 {[%clk 0:00:26.6]}
48. Rd7+ {[%clk 0:00:14.6]} 48... Kc5 {[%clk 0:00:26.7]} 49. Kc3 {[%clk
0:00:15]} 49... Kb6 {[%clk 0:00:26.3]} 50. Rd1 {[%clk 0:00:14.1]} 50... Rh5
{[%clk 0:00:26.2]} 51. Kc4 {[%clk 0:00:13.8]} 51... Rh4+ {[%clk 0:00:25.3]} 52.
Kc3 {[%clk 0:00:14.1]} 52... Kc5 {[%clk 0:00:25.1]} 53. Rd7 {[%clk 0:00:13.8]}
53... b5 {[%clk 0:00:25.2]} 54. Rg7 {[%clk 0:00:13.6]} 54... Rh3+ {[%clk
0:00:25.3]} 55. Kb2 {[%clk 0:00:13.3]} 55... b4 {[%clk 0:00:24.4]} 56. Rg4
{[%clk 0:00:12.5]} 56... Kb5 {[%clk 0:00:23.7]} 57. Kc2 {[%clk 0:00:11.3]} 57...
c5 {[%clk 0:00:23.7]} 58. Rg5 {[%clk 0:00:10.8]} 58... Rh4 {[%clk 0:00:19.5]}
59. Kb3 {[%clk 0:00:10.3]} 59... Rh3+ {[%clk 0:00:18.8]} 60. Kb2 {[%clk
0:00:10.6]} 60... Kc4 {[%clk 0:00:17.1]} 61. Rg4+ {[%clk 0:00:10.1]} 61... Kd5
{[%clk 0:00:15.9]} 62. Rg5+ {[%clk 0:00:10.5]} 62... Kc6 {[%clk 0:00:16.1]} 63.
Rg6+ {[%clk 0:00:10.5]} 63... Kb5 {[%clk 0:00:16.3]} 64. Rg5 {[%clk 0:00:11.1]}
64... Rh8 {[%clk 0:00:16.3]} 65. Rf5 {[%clk 0:00:11]} 65... Re8 {[%clk
0:00:15.7]} 66. Rh5 {[%clk 0:00:10.3]} 66... Re3 {[%clk 0:00:15.3]} 67. Rg5
{[%clk 0:00:10.5]} 67... Re2+ {[%clk 0:00:15.5]} 68. Kb3 {[%clk 0:00:10.3]}
68... Re3+ {[%clk 0:00:15]} 69. Kb2 {[%clk 0:00:10.1]} 69... Rc3 {[%clk
0:00:15.4]} 70. Rf5 {[%clk 0:00:09.8]} 70... Ka4 {[%clk 0:00:15.5]} 71. Rf8
{[%clk 0:00:09.6]} 71... Rh3 {[%clk 0:00:13.7]} 72. Ra8+ {[%clk 0:00:10.1]}
72... Kb5 {[%clk 0:00:14]} 73. Rb8+ {[%clk 0:00:11]} 73... Kc4 {[%clk
0:00:14.4]} 74. Rc8 {[%clk 0:00:10.7]} 74... Rh2+ {[%clk 0:00:14.6]} 75. Kc1
{[%clk 0:00:10.3]} 75... Kd4 {[%clk 0:00:13.4]} 76. Rd8+ {[%clk 0:00:09.2]}
76... Kc3 {[%clk 0:00:13.6]} 77. Kb1 {[%clk 0:00:08.9]} 77... b3 {[%clk
0:00:12.8]} 78. Rd1 {[%clk 0:00:05.2]} 78... c4 {[%clk 0:00:12.7]} 79. Rc1+
{[%clk 0:00:05.2]} 79... Kb4 {[%clk 0:00:13.1]} 80. Rd1 {[%clk 0:00:05.1]} 80...
c3 {[%clk 0:00:12.2]} 81. Rg1 {[%clk 0:00:04.6]} 81... Ka3 {[%clk 0:00:10.3]}
0-1

[Event "*** Titled Tuesday Blitz"]
[Site "Chess.com"]
[Date "2020.05.05"]
[Round "8"]
[White "Onischuk_V"]
[Black "PaulfromSPb"]
[Result "1/2-1/2"]
[WhiteElo "2731"]
[BlackElo "2625"]
[TimeControl "180+1"]
[EndTime "11:37:39 PDT"]
[Termination "Game drawn - insufficient material"]

1. e4 {[%clk 0:02:53.2]} 1... c5 {[%clk 0:02:59.8]} 2. Nf3 {[%clk 0:02:53]} 2...
d6 {[%clk 0:03:00.2]} 3. d4 {[%clk 0:02:53]} 3... cxd4 {[%clk 0:03:01.1]} 4.
Nxd4 {[%clk 0:02:53.4]} 4... Nf6 {[%clk 0:03:01.4]} 5. Nc3 {[%clk 0:02:53.4]}
5... a6 {[%clk 0:03:01.8]} 6. a4 {[%clk 0:02:49.1]} 6... Nc6 {[%clk 0:02:59]} 7.
Nxc6 {[%clk 0:02:47.3]} 7... bxc6 {[%clk 0:02:58.9]} 8. a5 {[%clk 0:02:47.6]}
8... g6 {[%clk 0:02:51.6]} 9. Be3 {[%clk 0:02:40.5]} 9... Bg7 {[%clk 0:02:50.8]}
10. e5 {[%clk 0:02:35.1]} 10... Ng4 {[%clk 0:02:23.5]} 11. Bb6 {[%clk
0:02:34.1]} 11... Qd7 {[%clk 0:02:23.9]} 12. exd6 {[%clk 0:02:34.1]} 12... exd6
{[%clk 0:02:19.7]} 13. Qe2+ {[%clk 0:02:29.8]} 13... Qe6 {[%clk 0:02:17.8]} 14.
O-O-O {[%clk 0:02:17.1]} 14... d5 {[%clk 0:01:37.4]} 15. Qxe6+ {[%clk
0:01:57.2]} 15... Bxe6 {[%clk 0:01:35.2]} 16. f3 {[%clk 0:01:56.1]} 16... Ne5
{[%clk 0:01:30.9]} 17. Na4 {[%clk 0:01:54.3]} 17... Nd7 {[%clk 0:01:30.7]} 18.
Nc5 {[%clk 0:01:47.3]} 18... Nxc5 {[%clk 0:01:26.8]} 19. Bxc5 {[%clk 0:01:47.5]}
19... Kd7 {[%clk 0:01:21.9]} 20. Rd3 {[%clk 0:01:46.2]} 20... Rhb8 {[%clk
0:01:20.9]} 21. Bb6 {[%clk 0:01:36.9]} 21... Be5 {[%clk 0:01:20.4]} 22. Rb3
{[%clk 0:01:34.6]} 22... Bc7 {[%clk 0:01:06.6]} 23. Bd3 {[%clk 0:01:26.5]} 23...
Bxb6 {[%clk 0:01:03.2]} 24. Rxb6 {[%clk 0:01:19.2]} 24... Rxb6 {[%clk
0:01:03.2]} 25. axb6 {[%clk 0:01:19.6]} 25... Kc8 {[%clk 0:01:01.5]} 26. Kd2
{[%clk 0:01:11.1]} 26... Kb7 {[%clk 0:01:01.2]} 27. Ke3 {[%clk 0:01:00.9]} 27...
Kxb6 {[%clk 0:01:01.2]} 28. Kf4 {[%clk 0:01:01.4]} 28... Re8 {[%clk 0:00:56.5]}
29. Kg5 {[%clk 0:00:56.4]} 29... Bf5 {[%clk 0:00:43.8]} 30. Bxf5 {[%clk
0:00:47.4]} 30... gxf5 {[%clk 0:00:44.7]} 31. Kxf5 {[%clk 0:00:47.7]} 31... Re2
{[%clk 0:00:44.7]} 32. g4 {[%clk 0:00:48]} 32... Rxc2 {[%clk 0:00:44.3]} 33. f4
{[%clk 0:00:45.8]} 33... d4 {[%clk 0:00:35.4]} 34. b3 {[%clk 0:00:37.5]} 34...
Kc5 {[%clk 0:00:29.6]} 35. Kf6 {[%clk 0:00:33.9]} 35... d3 {[%clk 0:00:27.6]}
36. Kxf7 {[%clk 0:00:33.8]} 36... d2 {[%clk 0:00:26.5]} 37. Rd1 {[%clk
0:00:33.3]} 37... Kd4 {[%clk 0:00:26.8]} 38. f5 {[%clk 0:00:33.1]} 38... Ke3
{[%clk 0:00:27.1]} 39. f6 {[%clk 0:00:33.4]} 39... Rc1 {[%clk 0:00:27.3]} 40.
Rxd2 {[%clk 0:00:33.4]} 40... Kxd2 {[%clk 0:00:28.2]} 41. Kg7 {[%clk 0:00:33.7]}
41... Rf1 {[%clk 0:00:22.8]} 42. g5 {[%clk 0:00:33.7]} 42... Kc3 {[%clk
0:00:22.6]} 43. Kxh7 {[%clk 0:00:32.8]} 43... Kxb3 {[%clk 0:00:22.7]} 44. Kg7
{[%clk 0:00:30.4]} 44... a5 {[%clk 0:00:18.6]} 45. f7 {[%clk 0:00:30.6]} 45...
a4 {[%clk 0:00:16.2]} 46. f8=Q {[%clk 0:00:30.4]} 46... Rxf8 {[%clk 0:00:15.8]}
47. Kxf8 {[%clk 0:00:31.1]} 47... a3 {[%clk 0:00:16.7]} 48. g6 {[%clk
0:00:31.7]} 48... a2 {[%clk 0:00:17.1]} 49. g7 {[%clk 0:00:32.4]} 49... a1=Q
{[%clk 0:00:16.9]} 50. g8=Q+ {[%clk 0:00:32.5]} 50... Kb4 {[%clk 0:00:12.6]} 51.
Qg4+ {[%clk 0:00:31.8]} 51... Kb5 {[%clk 0:00:12]} 52. h4 {[%clk 0:00:28.9]}
52... Qf6+ {[%clk 0:00:10.8]} 53. Kg8 {[%clk 0:00:28.6]} 53... c5 {[%clk
0:00:10.9]} 54. h5 {[%clk 0:00:22.2]} 54... c4 {[%clk 0:00:10.9]} 55. Qd7+
{[%clk 0:00:21.4]} 55... Kb4 {[%clk 0:00:09.5]} 56. Qb7+ {[%clk 0:00:20.6]}
56... Kc3 {[%clk 0:00:08]} 57. Qd5 {[%clk 0:00:12.9]} 57... Kb4 {[%clk
0:00:06.1]} 58. Qe4 {[%clk 0:00:08.4]} 58... Kb3 {[%clk 0:00:05.8]} 59. Qe3+
{[%clk 0:00:07.1]} 59... c3 {[%clk 0:00:05.6]} 60. h6 {[%clk 0:00:07.6]} 60...
Qg6+ {[%clk 0:00:05.9]} 61. Kf8 {[%clk 0:00:07.5]} 61... Qf6+ {[%clk 0:00:05.6]}
62. Ke8 {[%clk 0:00:07.6]} 62... Qg6+ {[%clk 0:00:05.9]} 63. Kd7 {[%clk
0:00:07.4]} 63... Kb2 {[%clk 0:00:05.7]} 64. Qe6 {[%clk 0:00:02.4]} 64... Qh7+
{[%clk 0:00:04.4]} 65. Kd6 {[%clk 0:00:01.1]} 65... c2 {[%clk 0:00:04.7]} 66.
Qe5+ {[%clk 0:00:01.6]} 66... Kb1 {[%clk 0:00:04.5]} 67. Qb5+ {[%clk 0:00:01.6]}
67... Ka2 {[%clk 0:00:04.6]} 68. Qa5+ {[%clk 0:00:01.6]} 68... Kb3 {[%clk
0:00:04.7]} 69. Qb5+ {[%clk 0:00:02.1]} 69... Kc3 {[%clk 0:00:05.1]} 70. Qc5+
{[%clk 0:00:02.7]} 70... Kb2 {[%clk 0:00:05.6]} 71. Qb5+ {[%clk 0:00:02.9]}
71... Ka1 {[%clk 0:00:05.7]} 72. Qa5+ {[%clk 0:00:02.8]} 72... Kb1 {[%clk
0:00:06.1]} 73. Qb5+ {[%clk 0:00:02.9]} 73... Kc1 {[%clk 0:00:06.5]} 74. Qg5+
{[%clk 0:00:02.9]} 74... Kd1 {[%clk 0:00:05.5]} 75. Qg1+ {[%clk 0:00:03]} 75...
Kd2 {[%clk 0:00:05.5]} 76. Qf2+ {[%clk 0:00:03.2]} 76... Kc3 {[%clk 0:00:05.7]}
77. Qe3+ {[%clk 0:00:02.5]} 77... Qd3+ {[%clk 0:00:05.5]} 78. Qxd3+ {[%clk
0:00:02.7]} 78... Kxd3 {[%clk 0:00:06.4]} 79. h7 {[%clk 0:00:03.3]} 79... c1=Q
{[%clk 0:00:06.3]} 80. h8=Q {[%clk 0:00:03.4]} 80... Qa3+ {[%clk 0:00:06.5]} 81.
Ke6 {[%clk 0:00:02.7]} 81... Qb3+ {[%clk 0:00:05.9]} 82. Ke7 {[%clk 0:00:02]}
82... Qb4+ {[%clk 0:00:05.8]} 83. Kf7 {[%clk 0:00:02]} 83... Qd4 {[%clk
0:00:06.7]} 84. Kg8 {[%clk 0:00:02.1]} 84... Qxh8+ {[%clk 0:00:06.4]} 85. Kxh8
{[%clk 0:00:02.7]} 1/2-1/2

[Event "*** Titled Tuesday Blitz"]
[Site "Chess.com"]
[Date "2020.05.05"]
[Round "8"]
[White "barbara25"]
[Black "WonderChampion"]
[Result "1-0"]
[WhiteElo "2222"]
[BlackElo "1847"]
[TimeControl "180+1"]
[EndTime "11:37:40 PDT"]
[Termination "barbara25 won by checkmate"]

1. e4 {[%clk 0:03:00.9]} 1... c5 {[%clk 0:02:59.6]} 2. Nf3 {[%clk 0:02:59.7]}
2... g6 {[%clk 0:02:59.4]} 3. d4 {[%clk 0:02:58.4]} 3... cxd4 {[%clk 0:02:59.8]}
4. Nxd4 {[%clk 0:02:59.3]} 4... Nc6 {[%clk 0:03:00.1]} 5. c4 {[%clk 0:02:54.2]}
5... Nf6 {[%clk 0:02:58.5]} 6. Nc3 {[%clk 0:02:53.8]} 6... Nxd4 {[%clk
0:02:57.5]} 7. Qxd4 {[%clk 0:02:52.7]} 7... d6 {[%clk 0:02:57.9]} 8. f3 {[%clk
0:02:52.8]} 8... Bg7 {[%clk 0:02:57.8]} 9. Be3 {[%clk 0:02:52.7]} 9... O-O
{[%clk 0:02:58.1]} 10. Qd2 {[%clk 0:02:52.9]} 10... Bd7 {[%clk 0:02:54.3]} 11.
Be2 {[%clk 0:02:52.9]} 11... a5 {[%clk 0:02:54]} 12. O-O {[%clk 0:02:52.6]}
12... a4 {[%clk 0:02:53.7]} 13. Rac1 {[%clk 0:02:52.6]} 13... Qa5 {[%clk
0:02:46.6]} 14. Rfd1 {[%clk 0:02:51.5]} 14... Rfc8 {[%clk 0:02:33.4]} 15. Bg5
{[%clk 0:02:34.9]} 15... Be6 {[%clk 0:02:20.3]} 16. Nd5 {[%clk 0:02:09.5]} 16...
Qxd2 {[%clk 0:02:03.9]} 17. Rxd2 {[%clk 0:02:09.3]} 17... Bxd5 {[%clk
0:01:56.5]} 18. exd5 {[%clk 0:02:08.7]} 18... a3 {[%clk 0:01:50]} 19. b3 {[%clk
0:02:08.2]} 19... b5 {[%clk 0:01:42]} 20. Rcc2 {[%clk 0:02:06]} 20... bxc4
{[%clk 0:01:40.4]} 21. Bxc4 {[%clk 0:02:00.4]} 21... Rc7 {[%clk 0:01:38.6]} 22.
Kf2 {[%clk 0:01:54.6]} 22... Rac8 {[%clk 0:01:37.7]} 23. g4 {[%clk 0:01:42.8]}
23... h6 {[%clk 0:01:36.7]} 24. Be3 {[%clk 0:01:41.6]} 24... Nd7 {[%clk
0:01:33.8]} 25. h4 {[%clk 0:01:35]} 25... Ne5 {[%clk 0:01:32.6]} 26. Rd4 {[%clk
0:00:54.5]} 26... f5 {[%clk 0:00:57.1]} 27. gxf5 {[%clk 0:00:46.2]} 27... gxf5
{[%clk 0:00:57]} 28. Ke2 {[%clk 0:00:35.6]} 28... Kh7 {[%clk 0:00:51.1]} 29. Rf4
{[%clk 0:00:29.6]} 29... Kg6 {[%clk 0:00:42.9]} 30. Kd1 {[%clk 0:00:21.1]} 30...
Kf6 {[%clk 0:00:39.4]} 31. Bd4 {[%clk 0:00:16.6]} 31... Rb8 {[%clk 0:00:26]} 32.
Bd3 {[%clk 0:00:15.9]} 32... Rxc2 {[%clk 0:00:24.3]} 33. Bxc2 {[%clk 0:00:15.8]}
33... e6 {[%clk 0:00:20.1]} 34. dxe6 {[%clk 0:00:15.1]} 34... Kxe6 {[%clk
0:00:20.6]} 35. Bxf5+ {[%clk 0:00:14.9]} 35... Ke7 {[%clk 0:00:20.4]} 36. Bc2
{[%clk 0:00:12.8]} 36... Rc8 {[%clk 0:00:19.7]} 37. Re4 {[%clk 0:00:12.5]} 37...
Kd7 {[%clk 0:00:18.1]} 38. f4 {[%clk 0:00:11.6]} 38... Nf3 {[%clk 0:00:17]} 39.
Bxg7 {[%clk 0:00:10.9]} 39... Rg8 {[%clk 0:00:14.3]} 40. Bxh6 {[%clk 0:00:10.2]}
40... Rg1+ {[%clk 0:00:13.7]} 41. Ke2 {[%clk 0:00:10.3]} 41... Nh2 {[%clk
0:00:11.6]} 42. Rc4 {[%clk 0:00:08.9]} 42... Rg2+ {[%clk 0:00:11]} 43. Kd3
{[%clk 0:00:09.1]} 43... Rg3+ {[%clk 0:00:11.3]} 44. Kd4 {[%clk 0:00:09.3]}
44... Rg2 {[%clk 0:00:11]} 45. Bf5+ {[%clk 0:00:09.8]} 45... Ke7 {[%clk
0:00:10.3]} 46. Bg5+ {[%clk 0:00:10.3]} 46... Kf7 {[%clk 0:00:09.7]} 47. Rc7+
{[%clk 0:00:10.7]} 47... Ke8 {[%clk 0:00:09.6]} 48. Bg6+ {[%clk 0:00:10.7]}
48... Kf8 {[%clk 0:00:09.9]} 49. Rc8+ {[%clk 0:00:10.8]} 49... Kg7 {[%clk
0:00:09.3]} 50. h5 {[%clk 0:00:11.3]} 50... Nf3+ {[%clk 0:00:07.7]} 51. Ke4
{[%clk 0:00:10.1]} 51... Nxg5+ {[%clk 0:00:08.3]} 52. fxg5 {[%clk 0:00:09.9]}
52... Rxg5 {[%clk 0:00:09]} 53. Rc7+ {[%clk 0:00:10.1]} 53... Kf6 {[%clk
0:00:07.9]} 54. Ra7 {[%clk 0:00:10.5]} 54... Re5+ {[%clk 0:00:07.3]} 55. Kd4
{[%clk 0:00:10.6]} 55... Re1 {[%clk 0:00:06.6]} 56. Rxa3 {[%clk 0:00:10.4]}
56... Rd1+ {[%clk 0:00:06.8]} 57. Kc3 {[%clk 0:00:10.5]} 57... Rc1+ {[%clk
0:00:07.1]} 58. Kd2 {[%clk 0:00:10.7]} 58... Rh1 {[%clk 0:00:07.5]} 59. Ra6
{[%clk 0:00:11.2]} 59... Rh2+ {[%clk 0:00:07.9]} 60. Kd3 {[%clk 0:00:11.7]}
60... Rh3+ {[%clk 0:00:08.5]} 61. Kd4 {[%clk 0:00:11.9]} 61... Rh4+ {[%clk
0:00:09.1]} 62. Kd5 {[%clk 0:00:12.1]} 62... Rh1 {[%clk 0:00:09.6]} 63. Rxd6+
{[%clk 0:00:12.4]} 63... Kg5 {[%clk 0:00:10.3]} 64. Kc6 {[%clk 0:00:12]} 64...
Rc1+ {[%clk 0:00:10.5]} 65. Kb5 {[%clk 0:00:11.5]} 65... Ra1 {[%clk 0:00:10.1]}
66. a4 {[%clk 0:00:11.6]} 66... Re1 {[%clk 0:00:10]} 67. b4 {[%clk 0:00:11.7]}
67... Re5+ {[%clk 0:00:10.5]} 68. Kc6 {[%clk 0:00:12]} 68... Re8 {[%clk
0:00:10.7]} 69. b5 {[%clk 0:00:11.6]} 69... Rc8+ {[%clk 0:00:10.2]} 70. Kb7
{[%clk 0:00:11.8]} 70... Rg8 {[%clk 0:00:09.4]} 71. a5 {[%clk 0:00:11.8]} 71...
Rg7+ {[%clk 0:00:09.9]} 72. Kb6 {[%clk 0:00:12.1]} 72... Rg8 {[%clk 0:00:10]}
73. a6 {[%clk 0:00:12.3]} 73... Rb8+ {[%clk 0:00:10.4]} 74. Ka5 {[%clk
0:00:12.8]} 74... Rf8 {[%clk 0:00:09.6]} 75. a7 {[%clk 0:00:13.1]} 75... Rf1
{[%clk 0:00:09.1]} 76. b6 {[%clk 0:00:13]} 76... Ra1+ {[%clk 0:00:09.1]} 77. Kb5
{[%clk 0:00:13.5]} 77... Ra2 {[%clk 0:00:08.6]} 78. Kc6 {[%clk 0:00:13.7]} 78...
Ra3 {[%clk 0:00:07.8]} 79. Kb7 {[%clk 0:00:14.1]} 79... Rc3 {[%clk 0:00:06.3]}
80. a8=Q {[%clk 0:00:15]} 80... Rc4 {[%clk 0:00:04.6]} 81. Qd8+ {[%clk
0:00:15.9]} 81... Kh6 {[%clk 0:00:03.6]} 82. Be4+ {[%clk 0:00:15.5]} 82... Kg7
{[%clk 0:00:02.1]} 83. Qd7+ {[%clk 0:00:15.2]} 83... Kf8 {[%clk 0:00:01.7]} 84.
Rf6+ {[%clk 0:00:15.2]} 84... Kg8 {[%clk 0:00:02.1]} 85. Qf7+ {[%clk 0:00:15.6]}
85... Kh8 {[%clk 0:00:02.7]} 86. Rh6# {[%clk 0:00:15.8]} 1-0